{"text_format":"3","workbook":"xlsx","n_sheets":3,"sheets":["Lista uczniów","Wykaz uczestników zajęć","Szczegóły dotyczące ucznia"],"not_rendered":{"images":2,"defined_names":8},"read":"whole","date_system":"1900"}

{"sheet":"Lista uczniów","index":0,"n_rows":8,"n_cols":13,"rows_kept":8,"merged":[[1,2,2,3],[1,4,1,11],[2,4,2,11],[6,12,8,16]]}
[]
[null,null,"Lista uczniów",null,"PRZEJDŹ DO WYKAZU UCZESTNIKÓW ZAJĘĆ"]
[{"$nulls":4},"PRZEJDŹ DO SZCZEGÓŁÓW DOTYCZĄCYCH UCZNIA"]
[null,null,"IMIĘ I NAZWISKO UCZNIA","ADRES E-MAIL","TELEFON DOMOWY","TELEFON KOMÓRKOWY","DATA URODZENIA","KONTAKT W NAGŁYCH WYPADKACH","TELEFON W NAGŁYCH WYPADKACH","LEKARZ","TELEFON LEKARZA","  "]
[null,null,"Imię i nazwisko 1","Adres e-mail","Telefon domowy","Telefon komórkowy","Data","Osoba kontaktowa 1","Telefon w nagłych wypadkach","Lekarz 1","Telefon lekarza"]
[null,null,"Imię i nazwisko 2","Adres e-mail","Telefon domowy","Telefon komórkowy","Data","Osoba kontaktowa 2","Telefon w nagłych wypadkach","Lekarz 2","Telefon lekarza"]
[null,null,"Imię i nazwisko 3","Adres e-mail","Telefon domowy","Telefon komórkowy","Data","Osoba kontaktowa 3","Telefon w nagłych wypadkach","Lekarz 3","Telefon lekarza",null,"Porada: aby dodać więcej uczniów, w ostatniej komórce tabeli i naciśnij klawisz Tab."]
[null,null,"Imię i nazwisko 4","Adres e-mail","Telefon domowy","Telefon komórkowy","Data","Osoba kontaktowa 4","Telefon w nagłych wypadkach","Lekarz 4","Telefon lekarza"]

{"sheet":"Wykaz uczestników zajęć","index":1,"n_rows":12,"n_cols":7,"rows_kept":12,"merged":[[1,2,2,2],[1,3,2,3],[1,4,1,6],[2,4,2,6]]}
[]
[null,null,"Wykaz uczestników zajęć","Graphic Design Institute","PRZEJDŹ DO LISTY UCZNIÓW"]
[{"$nulls":4},"PRZEJDŹ DO SZCZEGÓŁÓW DOTYCZĄCYCH UCZNIA"]
[null,null,"ZAJĘCIA","Nazwa zajęć","DATA ROZPOCZĘCIA","Data"]
[null,null,"OSOBA PROWADZĄCA","Osoba prowadząca 1","DATA ZAKOŃCZENIA","Data"]
[null,null,"ZAREJESTROWANI UCZNIOWIE",{"$f":"COUNTA(Wykaz_uczniów[IMIĘ I NAZWISKO UCZNIA])","v":4}]
[]
[null,null,"IMIĘ I NAZWISKO UCZNIA","ADRES E-MAIL","TELEFON DOMOWY","TELEFON KOMÓRKOWY","  "]
[null,null,"Imię i nazwisko 1",{"$f":"IFERROR(VLOOKUP(Wykaz_uczniów[[#This Row],[IMIĘ I NAZWISKO UCZNIA]],Uczniowie[],2),\"\")","v":"Adres e-mail"},{"$f":"IFERROR(VLOOKUP(Wykaz_uczniów[[#This Row],[IMIĘ I NAZWISKO UCZNIA]],Uczniowie[],3),\"\")","v":"Telefon domowy"},{"$f":"IFERROR(VLOOKUP(Wykaz_uczniów[[#This Row],[IMIĘ I NAZWISKO UCZNIA]],Uczniowie[],4),\"\")","v":"Telefon komórkowy"}]
[null,null,"Imię i nazwisko 2",{"$f":"IFERROR(VLOOKUP(Wykaz_uczniów[[#This Row],[IMIĘ I NAZWISKO UCZNIA]],Uczniowie[],2),\"\")","v":"Adres e-mail"},{"$f":"IFERROR(VLOOKUP(Wykaz_uczniów[[#This Row],[IMIĘ I NAZWISKO UCZNIA]],Uczniowie[],3),\"\")","v":"Telefon domowy"},{"$f":"IFERROR(VLOOKUP(Wykaz_uczniów[[#This Row],[IMIĘ I NAZWISKO UCZNIA]],Uczniowie[],4),\"\")","v":"Telefon komórkowy"}]
[null,null,"Imię i nazwisko 3",{"$f":"IFERROR(VLOOKUP(Wykaz_uczniów[[#This Row],[IMIĘ I NAZWISKO UCZNIA]],Uczniowie[],2),\"\")","v":"Adres e-mail"},{"$f":"IFERROR(VLOOKUP(Wykaz_uczniów[[#This Row],[IMIĘ I NAZWISKO UCZNIA]],Uczniowie[],3),\"\")","v":"Telefon domowy"},{"$f":"IFERROR(VLOOKUP(Wykaz_uczniów[[#This Row],[IMIĘ I NAZWISKO UCZNIA]],Uczniowie[],4),\"\")","v":"Telefon komórkowy"}]
[null,null,"Imię i nazwisko 4",{"$f":"IFERROR(VLOOKUP(Wykaz_uczniów[[#This Row],[IMIĘ I NAZWISKO UCZNIA]],Uczniowie[],2),\"\")","v":"Adres e-mail"},{"$f":"IFERROR(VLOOKUP(Wykaz_uczniów[[#This Row],[IMIĘ I NAZWISKO UCZNIA]],Uczniowie[],3),\"\")","v":"Telefon domowy"},{"$f":"IFERROR(VLOOKUP(Wykaz_uczniów[[#This Row],[IMIĘ I NAZWISKO UCZNIA]],Uczniowie[],4),\"\")","v":"Telefon komórkowy"}]

{"sheet":"Szczegóły dotyczące ucznia","index":2,"n_rows":13,"n_cols":4,"rows_kept":13,"merged":[[1,2,2,2],[1,3,1,4],[2,3,2,4],[3,2,3,3]]}
[]
[null,null,"Szczegóły dotyczące ucznia","PRZEJDŹ DO LISTY UCZNIÓW"]
[{"$nulls":3},"PRZEJDŹ DO WYKAZU UCZESTNIKÓW ZAJĘĆ"]
[null,null,"PORADA: WYBIERZ UCZNIA Z LISTY ROZWIJANEJ W KOMÓRCE D5 W CELU ZAKTUALIZOWANIA DOTYCZĄCYCH GO SZCZEGÓŁÓW"]
[null,null,"IMIĘ I NAZWISKO UCZNIA","Imię i nazwisko 1"]
[null,null,"ADRES E-MAIL",{"$f":"IFERROR(VLOOKUP(Imię_i_nazwisko_ucznia,Uczniowie[],2,FALSE),\"\")","v":"Adres e-mail"}]
[null,null,"TELEFON DOMOWY",{"$f":"IFERROR(VLOOKUP(Imię_i_nazwisko_ucznia,Uczniowie[],3,FALSE),\"\")","v":"Telefon domowy"}]
[null,null,"TELEFON KOMÓRKOWY",{"$f":"IFERROR(VLOOKUP(Imię_i_nazwisko_ucznia,Uczniowie[],4,FALSE),\"\")","v":"Telefon komórkowy"}]
[null,null,"Data urodzenia",{"$f":"IFERROR(VLOOKUP(Imię_i_nazwisko_ucznia,Uczniowie[],5,FALSE),\"\")","v":"Data"}]
[null,null,"KONTAKT W NAGŁYCH WYPADKACH",{"$f":"IFERROR(VLOOKUP(Imię_i_nazwisko_ucznia,Uczniowie[],6,FALSE),\"\")","v":"Osoba kontaktowa 1"}]
[null,null,"TELEFON W NAGŁYCH WYPADKACH",{"$f":"IFERROR(VLOOKUP(Imię_i_nazwisko_ucznia,Uczniowie[],7,FALSE),\"\")","v":"Telefon w nagłych wypadkach"}]
[null,null,"LEKARZ",{"$f":"IFERROR(VLOOKUP(Imię_i_nazwisko_ucznia,Uczniowie[],8,FALSE),\"\")","v":"Lekarz 1"}]
[null,null,"TELEFON LEKARZA",{"$f":"IFERROR(VLOOKUP(Imię_i_nazwisko_ucznia,Uczniowie[],9,FALSE),\"\")","v":"Telefon lekarza"}]